[Event "German Rapid Championship 2022"]
[Site "Goettingen"]
[Date "2022.09.24"]
[Round "5.5"]
[White "Feuerstack, Aljoscha"]
[Black "Carlstedt, Jonathan"]
[Result "0-1"]
[ECO "B22"]
[WhiteElo "2464"]
[BlackElo "2433"]
[Annotator "TA"]
[PlyCount "106"]
[EventDate "2022.09.24"]
[EventType "swiss"]
[EventCountry "GER"]
[SourceTitle "playchess.com"]
[Source "ChessBase"]
[SourceQuality "1"]
[TimeControl "900+10"]

{[%evp 9,106,0,0,0,0,0,18,0,0,0,-7,-23,-18,-7,-11,-25,-10,-40,-3,0,-10,-10,0,-4,-4,-27,-35,-27,-26,-24,-22,-39,-22,-25,-20,-25,-18,-18,-18,-16,-18,-28,-15,-20,-17,-12,-14,-13,0,-60,-53,-55,-57,-57,-55,-55,-27,-43,-45,-56,-58,-61,-62,-46,-37,-81,0,-36,-37,-40,0,-17,12,14,64,56,193,169,196,-56,-48,-144,-167,-162,-140,-154,-145,-789,-193,-289,-266,-261,-234,-674,-574,-1123,-1102,-1190,-1047]} 1. e4 {[%emt 0:00:02]} c5 {[%emt 0:00:02]} 2. c3 {[%emt 0:00:10]} Qa5 {[%emt 0:00:07]} 3. Na3 {[%emt 0:00:11]} e6 {[%emt 0:00:05]} 4. d4 {[%emt 0:00:42]} cxd4 {[%emt 0:00:03]} 5. Nc4 {[%emt 0:00:02]} Qc7 {[%emt 0:00:01]} 6. cxd4 {[%emt 0:00:02] B22: Sicilian: 2 c3.} d5 {[%emt 0:00:02]} 7. exd5 {[%emt 0:00:04]} exd5 {[%emt 0:00:02]} 8. Ne5 {[%emt 0:00:31] The position is equal.} Nc6 {[%emt 0:00:34]} 9. Ngf3 {[%emt 0:00:10]} Nf6 {[%emt 0:00:09]} 10. Be2 {[%emt 0:02:24]} Bd6 {[%emt 0:00:13]} 11. O-O {[%emt 0:00:12]} O-O {[%emt 0:00:09]} ({Don't take} 11... Nxe5 12. dxe5 Bxe5 13. Bb5+ Kf8 14. Nxe5 Qxe5 15. Re1 $16) 12. Bf4 {[%emt 0:00:08]} Ne4 {[%emt 0:00:45] [#]} 13. Qb3 $146 {[%emt 0:00:40]} ({Predecessor:} 13. Be3 Be6 14. Rc1 Qb6 15. Nc4 dxc4 16. d5 Qxb2 17. dxe6 Rad8 18. exf7+ Kh8 19. Rc2 {1-0 (70) Karpatchev,A (2438)-Mohebbi,J (2292) Bischwiller 1999}) 13... Nxd4 {[%emt 0:01:41]} 14. Nxd4 {[%emt 0:00:02]} Bxe5 {[%emt 0:00:01]} 15. Rac1 {[%emt 0:00:50]} Qb8 {[%emt 0:01:41]} 16. Bxe5 {[%emt 0:00:15]} Qxe5 {[%emt 0:00:01]} 17. Nf3 {[%emt 0:00:28]} Qd6 {[%emt 0:00:54]} 18. Rfd1 {[%emt 0:00:08]} Be6 {[%emt 0:01:28]} 19. Nd4 {[%emt 0:01:05]} Rac8 {[%emt 0:04:41]} 20. Rxc8 {[%emt 0:01:38]} Bxc8 {[%emt 0:00:24]} 21. Nb5 {[%emt 0:01:13][%csl LRa7,LRd5,LRd6]} Qb6 {[%emt 0:00:19]} 22. Qe3 {[%emt 0:00:14]} Qxe3 {[%emt 0:01:48]} 23. fxe3 {[%emt 0:00:02]} Be6 {[%emt 0:00:07]} 24. Bf3 {[%emt 0:01:52]} Nf6 {[%emt 0:00:11]} 25. Nc3 {[%emt 0:02:06]} Rd8 {[%emt 0:00:21]} 26. e4 $1 {[%emt 0:00:03]} d4 {[%emt 0:00:24]} 27. Nd5 {[%emt 0:00:27]} Kf8 {[%emt 0:01:53]} 28. Rxd4 {[%emt 0:00:14]} b6 {[%emt 0:00:37]} 29. a3 {[%emt 0:01:40]} (29. Ra4 $11) 29... Rd7 {[%emt 0:00:09]} 30. Kf2 {[%emt 0:00:21]} Bxd5 {[%emt 0:00:02]} 31. exd5 $15 {[%emt 0:00:02][%mdl 4096] Endgame KRB-KRN} Ke7 {[%emt 0:00:00]} 32. g4 {[%emt 0:01:12]} g5 {[%emt 0:00:20]} 33. h4 {[%emt 0:00:01]} h6 {[%emt 0:00:01]} 34. hxg5 {[%emt 0:00:52]} hxg5 {[%emt 0:00:01]} 35. Ke3 {[%emt 0:00:01]} Kd6 {[%emt 0:00:05]} 36. Rd2 {[%emt 0:00:10]} Ke5 {[%emt 0:00:46][%cal Rf6d5]} 37. Rf2 {[%emt 0:00:22]} Ne8 {[%emt 0:00:16] Black is more active.} ({Much worse is} 37... Nxd5+ $6 38. Bxd5 Kxd5 39. Rf5+ Kc4 40. Rxg5 $11) (37... Rxd5 $17 38. Be2 Ke6) 38. Rh2 {[%emt 0:00:18]} Nd6 {[%emt 0:00:22]} 39. Kd3 {[%emt 0:00:14]} Kf4 {[%emt 0:00:03]} 40. Bd1 {[%emt 0:00:02]} Ne4 {[%emt 0:00:46]} 41. Kd4 {[%emt 0:00:12]} Kg3 {[%emt 0:00:01]} (41... f5 $11) 42. Re2 $14 {[%emt 0:00:12]} Nf2 {[%emt 0:00:07]} (42... Nd6 $14) 43. Re3+ $18 {[%emt 0:00:03]} Kh4 {[%emt 0:00:05]} 44. Bf3 {[%emt 0:00:20]} ({White has to play} 44. Ba4 $18 Rd8 45. Rf3 Nxg4 46. Rxf7) 44... Nxg4 $15 {[%emt 0:00:03]} 45. Re4 {[%emt 0:00:25]} (45. Rc3 $15) 45... f5 $17 {[%emt 0:00:02]} 46. Re6 {[%emt 0:00:08]} f4 $1 {[%emt 0:00:12]} 47. d6 {[%emt 0:00:02] [#] Threatens to win with Bc6.} Kg3 $1 {[%emt 0:00:03]} 48. Bd1 {[%emt 0:00:03][%mdl 8192]} (48. Bc6 $17 Rd8 49. Bb5) 48... f3 $2 {[%emt 0:00:08]} (48... Ne3 49. Ba4 {[#]} Rxd6+ $3 {[%mdl 512]} 50. Rxd6 Nf5+ 51. Kd5 Nxd6 52. Kxd6 f3) 49. Rg6 {[%emt 0:00:18]} (49. Bxf3 {was necessary.} Kxf3 50. Kd5) 49... f2 {[%emt 0:00:13]} 50. Be2 {[%emt 0:00:02]} Kf4 {[%emt 0:00:01] Hoping for ...Ne3.} 51. Kd5 $2 {[%emt 0:00:20]} (51. Bd3) 51... Rd8 {[%emt 0:00:35] ...Ne3+ is the strong threat. Black is clearly winning.} 52. Rg7 {[%emt 0:00:02] And now Rf7+ would win.} Nf6+ {[%emt 0:00:02]} 53. Kc6 {[%emt 0:00:11] [#]} Rxd6+ $3 {[%emt 0:00:07][%mdl 512] Weighted Error Value: White=0.54/Black=0.29 (precise)} 0-1

[Event "German Rapid Championship 2022"]
[Site "Goettingen"]
[Date "2022.09.24"]
[Round "5.6"]
[White "Arndt, Magnus"]
[Black "Langrock, Hannes"]
[Result "1/2-1/2"]
[ECO "B40"]
[WhiteElo "2384"]
[BlackElo "2358"]
[Annotator "TA"]
[PlyCount "176"]
[EventDate "2022.09.24"]
[EventType "swiss"]
[EventCountry "GER"]
[SourceTitle "playchess.com"]
[Source "ChessBase"]
[SourceQuality "1"]
[TimeControl "900+10"]

{[%evp 45,176,-62,-64,-75,-18,-60,-38,-39,-46,-46,-37,-34,-40,-70,-67,-81,-71,-74,-65,-84,-43,-75,-68,-70,-81,-75,-72,-161,-156,-154,-188,-182,-142,-198,-146,-193,-156,-155,-155,-183,-183,-183,-183,-182,-182,-189,-168,-179,-175,-619,-604,-454,-446,-283,-94,-106,0,0,0,0,0,0,0,0,0,0,0,0,0,0,0,0,0,0,0,0,0,0,0,0,0,0,0,0,0,0,0,0,0,0,0,0,0,0,0,0,0,0,0,0,0,0,0,0,0,0,0,0,0,0,0,0,0,0,0,0,0,0,0,0,0,0,0,0,0,0,0,0,0,0,0,0,0]} 1. e4 {[%emt 0:00:02]} c5 {[%emt 0:00:02]} 2. Nf3 {[%emt 0:00:03]} e6 {[%emt 0:00:01]} 3. g3 {[%emt 0:00:39]} Nc6 {[%emt 0:00:13]} 4. Bg2 {[%emt 0:00:02]} Nf6 {[%emt 0:00:10]} 5. Nc3 {[%emt 0:00:01]} d5 {[%emt 0:00:36]} 6. exd5 {[%emt 0:00:02]} exd5 {[%emt 0:00:05]} 7. d4 {[%emt 0:00:02]} cxd4 {[%emt 0:00:33]} 8. Nxd4 {[%emt 0:00:22]} Bg4 {[%emt 0:00:12]} 9. Qd3 {[%emt 0:02:57]} Bb4 {[%emt 0:02:45]} 10. O-O {[%emt 0:01:54]} O-O {[%emt 0:00:42]} 11. Bf4 {[%emt 0:05:11]} Rc8 {[%emt 0:01:26]} 12. Nxc6 {[%emt 0:00:42]} bxc6 {[%emt 0:00:12]} 13. a3 {[%emt 0:01:26]} Bd6 {[%emt 0:02:40]} 14. Qd2 {[%emt 0:00:13]} Bf5 {[%emt 0:00:25]} 15. Rfe1 {[%emt 0:00:10]} Bxf4 {[%emt 0:00:25]} 16. Qxf4 {[%emt 0:00:03]} Bxc2 {[%emt 0:00:13]} 17. Rac1 {[%emt 0:00:13]} Bg6 {[%emt 0:00:21]} 18. b4 {[%emt 0:00:08]} a5 {[%emt 0:01:32]} 19. Red1 {[%emt 0:00:40]} axb4 {[%emt 0:00:08]} 20. axb4 {[%emt 0:00:02]} Qb6 {[%emt 0:00:40]} 21. Na4 {[%emt 0:01:19]} Qb5 {[%emt 0:00:26]} 22. Nc3 {[%emt 0:00:20]} Qb6 {[%emt 0:01:13]} 23. Na4 {[%emt 0:00:02]} Qa7 {[%emt 0:00:19]} 24. Nc5 {[%emt 0:00:24]} Rb8 {[%emt 0:00:17]} (24... Rfe8 $17) 25. Qd6 {[%emt 0:00:30]} Rfd8 {[%emt 0:01:23]} ({Reject} 25... Rxb4 26. Nd7 Qxd7 27. Qxb4 $11) 26. Qxc6 {[%emt 0:00:20]} Rb6 {[%emt 0:00:32]} 27. Qa4 {[%emt 0:00:25]} Qxa4 {[%emt 0:00:02]} 28. Nxa4 {[%emt 0:00:01]} Rxb4 {[%emt 0:00:04]} 29. Nc5 {[%emt 0:00:29]} h6 {[%emt 0:00:31]} 30. Nd3 {[%emt 0:00:06]} Bxd3 {[%emt 0:00:43]} 31. Rxd3 {[%emt 0:00:01]} d4 {[%emt 0:00:18]} 32. Bf3 {[%emt 0:00:06]} Rd7 {[%emt 0:00:20]} 33. Kg2 {[%emt 0:00:06]} g6 {[%emt 0:00:10]} 34. h3 {[%emt 0:00:24]} Kg7 {[%emt 0:00:02]} 35. Rc5 {[%emt 0:00:06]} Rd6 {[%emt 0:00:13]} 36. g4 {[%emt 0:00:45] [#]} (36. Rc6 $17 Rd7 37. Ra6) 36... Nd7 $1 $19 {[%emt 0:00:03]} 37. Rd5 {[%emt 0:00:23]} Rxd5 {[%emt 0:00:07]} 38. Bxd5 {[%emt 0:00:01]} Ne5 {[%emt 0:00:30]} 39. Rd2 {[%emt 0:00:04]} (39. Rb3 $17 Rxb3 40. Bxb3) 39... g5 {[%emt 0:00:09]} (39... d3 $19 40. Kg3 Rd4) 40. Kg3 {[%emt 0:00:19]} (40. Be4 $17) 40... Ng6 {[%emt 0:00:13]} 41. Be4 {[%emt 0:00:20]} Nf4 {[%emt 0:00:05]} 42. h4 {[%emt 0:00:07]} Kf6 {[%emt 0:00:22]} 43. hxg5+ {[%emt 0:00:01]} hxg5 {[%emt 0:00:01]} 44. f3 {[%emt 0:00:20]} Ke5 {[%emt 0:00:35]} 45. Kf2 {[%emt 0:00:01]} Ra4 {[%emt 0:00:19]} 46. Rb2 {[%emt 0:00:07]} Ra5 {[%emt 0:00:04]} 47. Rb7 $2 {[%emt 0:00:17]} (47. Bb1) 47... Ra2+ $19 {[%emt 0:00:09]} 48. Ke1 {[%emt 0:00:25]} d3 {[%emt 0:00:16]} 49. Rd7 {[%emt 0:00:13]} Re2+ $2 {[%emt 0:00:15]} (49... Ng2+ $19 {has better winning chances.} 50. Kd1 Ne3+ 51. Kc1 d2+ 52. Rxd2 Rxd2 53. Kxd2 {[#]} Nxg4 $1) 50. Kd1 $17 {[%emt 0:00:06]} d2 {[%emt 0:00:16]} (50... Rb2 $17) 51. Rxd2 {[%emt 0:00:18]} Rxd2+ {[%emt 0:00:01]} 52. Kxd2 {[%emt 0:00:01]} Kd4 {[%emt 0:00:01]} 53. Bb7 {[%emt 0:00:06]} f6 {[%emt 0:00:06]} 54. Bc6 {[%emt 0:00:01]} Ne6 {[%emt 0:00:09]} 55. Be4 {[%emt 0:00:16]} Nc5 {[%emt 0:00:03]} 56. Bc2 {[%emt 0:00:03]} Nd7 {[%emt 0:00:09]} 57. Be4 {[%emt 0:00:13]} Ne5 {[%emt 0:00:05]} 58. Bb7 {[%emt 0:00:08]} Nc4+ {[%emt 0:00:04]} 59. Ke2 {[%emt 0:00:01]} Nd6 {[%emt 0:00:17]} 60. Bc6 $1 {[%emt 0:00:05]} Nc8 {[%emt 0:00:14]} 61. Bd7 {[%emt 0:00:20]} (61. Bb7 $5 {[%cal Rb7c8]} Nd6 62. Bc6 $11) 61... Ne7 {[%emt 0:00:05]} 62. Be6 {[%emt 0:00:10]} Ke5 {[%emt 0:00:03]} 63. Bc4 {[%emt 0:00:29]} Kf4 {[%emt 0:00:03]} (63... Kd4 $5 {[%cal Rd4c4]} 64. Bb3 Nc6 $11) 64. Kf2 {[%emt 0:00:10]} Nc6 {[%emt 0:00:05]} 65. Bd5 {[%emt 0:00:03]} Ne5 {[%emt 0:00:02]} 66. Bb7 $1 {[%emt 0:00:05]} Nd3+ {[%emt 0:00:08]} 67. Ke2 {[%emt 0:00:05]} Nc5 {[%emt 0:00:00]} 68. Bd5 {[%emt 0:00:03]} Nd7 {[%emt 0:00:17]} 69. Kf2 {[%emt 0:00:05]} Nf8 {[%emt 0:00:11]} 70. Be4 {[%emt 0:00:07]} Ne6 {[%emt 0:00:03]} 71. Bd5 {[%emt 0:00:04]} Nd4 {[%emt 0:00:03]} 72. Be4 {[%emt 0:00:04]} Nb3 {[%emt 0:00:16]} 73. Bd5 {[%emt 0:00:21]} Nc5 {[%emt 0:00:11]} 74. Bc4 {[%emt 0:00:18]} Nd7 {[%emt 0:00:09]} 75. Bd5 {[%emt 0:00:03]} Nb6 {[%emt 0:00:06]} 76. Be6 {[%emt 0:00:08]} Ke5 {[%emt 0:00:03]} 77. Bb3 {[%emt 0:00:06]} Kd4 {[%emt 0:00:05]} 78. Be6 {[%emt 0:00:06]} Na4 {[%emt 0:00:03]} 79. Ke2 {[%emt 0:00:24]} Nc3+ {[%emt 0:00:05]} 80. Kd2 {[%emt 0:00:18]} Nb5 {[%emt 0:00:04]} 81. Bd7 {[%emt 0:00:09]} Nd6 {[%emt 0:00:02]} 82. Ke2 {[%emt 0:00:07]} Nc4 {[%emt 0:00:07]} 83. Be6 {[%emt 0:00:19]} Ne5 {[%emt 0:00:05]} 84. Bf5 {[%emt 0:00:19]} Nf7 {[%emt 0:00:15]} 85. Be6 {[%emt 0:00:08]} Nd6 {[%emt 0:00:03]} 86. Bd7 {[%emt 0:00:07]} Ke5 {[%emt 0:00:05]} 87. Bc6 {[%emt 0:00:23]} Kf4 {[%emt 0:00:05]} 88. Kf2 {[%emt 0:00:02]} Ke5 1/2-1/2

[Event "German Rapid Championship 2022"]
[Site "Goettingen"]
[Date "2022.09.24"]
[Round "5.7"]
[White "Spiess, Gunter"]
[Black "Reichmann, Hendrik"]
[Result "1/2-1/2"]
[ECO "A46"]
[WhiteElo "2384"]
[BlackElo "2307"]
[Annotator "TA"]
[PlyCount "34"]
[EventDate "2022.09.24"]
[EventType "swiss"]
[EventCountry "GER"]
[SourceTitle "playchess.com"]
[Source "ChessBase"]
[SourceQuality "1"]
[TimeControl "900+10"]

{[%evp 13,14,27,36]} 1. d4 {[%emt 0:00:01]} Nf6 {[%emt 0:00:02]} 2. Nf3 {[%emt 0:00:03]} d6 {[%emt 0:00:03]} 3. c4 {[%emt 0:00:03]} g6 {[%emt 0:00:04]} 4. Nc3 {[%emt 0:00:02]} Bf5 {[%emt 0:00:05]} 5. g3 {[%emt 0:00:25]} Bg7 {[%emt 0:00:13]} 6. Bg2 {[%emt 0:00:03]} O-O {[%emt 0:00:33]} 7. O-O {[%emt 0:00:14] 7.Nh4 is the modern continuation.} Ne4 {[%emt 0:00:04] [#]} {Predecessor:} 8. Nh4 $146 {E60: King's Indian: Unusual lines and Fianchetto Variation without Nc3.} Nxc3 9. bxc3 Bc8 10. f4 c5 11. f5 Nc6 12. Be3 Na5 13. Qd3 Bd7 14. Rf2 cxd4 15. cxd4 e6 16. fxg6 hxg6 17. Raf1 Qe7 {0-1 (86) Oparin,G (2681)-Caruana,F (2792) Warsaw 2021} 1/2-1/2

[Event "German Rapid Championship 2022"]
[Site "Goettingen"]
[Date "2022.09.24"]
[Round "5.8"]
[White "Laux, Dominik"]
[Black "Woelk, Tom-Frederic"]
[Result "1-0"]
[ECO "D00"]
[WhiteElo "2248"]
[BlackElo "2289"]
[Annotator "TA"]
[PlyCount "67"]
[EventDate "2022.09.24"]
[EventType "swiss"]
[EventCountry "GER"]
[SourceTitle "playchess.com"]
[Source "ChessBase"]
[SourceQuality "1"]
[TimeControl "900+10"]

{[%evp 9,67,0,0,0,4,0,3,-3,24,18,47,33,35,26,76,69,76,75,72,66,69,59,69,66,77,69,71,56,58,42,39,42,38,12,12,12,16,12,27,9,22,15,23,0,93,73,88,81,85,56,133,120,679,413,1268,1120,1060,1051,29997,1041]} 1. d4 {[%emt 0:00:07]} d5 {[%emt 0:00:12]} 2. Bf4 {[%emt 0:00:05]} Nf6 {[%emt 0:00:10]} 3. e3 {[%emt 0:00:04]} c5 {[%emt 0:00:04]} 4. c3 {[%emt 0:00:11]} Qb6 {[%emt 0:00:13]} 5. Qb3 {[%emt 0:00:22]} c4 {[%emt 0:00:06]} 6. Qc2 {[%emt 0:00:03] D00: 1 d4 d5: Unusual lines.} g6 {[%emt 0:00:28]} 7. Nd2 {[%emt 0:00:04]} Bf5 {[%emt 0:00:02] Prevents e4.} 8. Qc1 {[%emt 0:00:07] The position is equal.} Nh5 {[%emt 0:01:32]} 9. Be5 {[%emt 0:00:27]} f6 {[%emt 0:00:28]} 10. Bxb8 {[%emt 0:00:05]} Rxb8 {[%emt 0:00:01]} 11. Be2 {[%emt 0:00:46] [#] And now g4 would win.} Be6 $146 {[%emt 0:01:05]} (11... Ng7 $11 {remains equal.}) ({Predecessor:} 11... Ng7 12. Ngf3 Qc7 13. O-O g5 14. b3 b5 15. a4 a6 16. axb5 axb5 17. Ra6 e6 18. bxc4 bxc4 {1-0 (40) Kholmirzaev,B (2352)-Shodikulov,D (2181) Tashkent 2016}) 12. b3 $16 {[%emt 0:01:16]} cxb3 {[%emt 0:00:50]} 13. axb3 {[%emt 0:00:07]} Bh6 {[%emt 0:01:13]} 14. Qa3 {[%emt 0:00:58]} a6 {[%emt 0:00:12]} 15. Ngf3 {[%emt 0:00:19]} Qc7 {[%emt 0:00:25]} 16. c4 {[%emt 0:00:23]} O-O {[%emt 0:00:04]} 17. O-O {[%emt 0:00:32]} Ng7 {[%emt 0:00:24]} 18. Rac1 {[%emt 0:00:46] aiming for cxd5.} Qd7 {[%emt 0:00:11]} 19. Rc3 {[%emt 0:01:09]} Rfc8 {[%emt 0:00:42]} 20. Rfc1 {[%emt 0:00:09]} Ne8 {[%emt 0:01:08]} 21. cxd5 {[%emt 0:02:40]} Rxc3 {[%emt 0:01:04]} 22. Rxc3 {[%emt 0:00:06]} Bxd5 {[%emt 0:00:02]} 23. Qc1 {[%emt 0:01:39]} Nd6 {[%emt 0:00:30]} 24. Nc4 {[%emt 0:00:47]} b5 {[%emt 0:01:13]} 25. Nxd6 {[%emt 0:00:48]} Qxd6 {[%emt 0:00:02]} 26. Nd2 {[%emt 0:00:15]} Rb6 {[%emt 0:00:42]} (26... Bf8 $11 {keeps the balance.}) 27. Bf3 {[%emt 0:00:25]} Bxf3 {[%emt 0:01:16]} 28. Rc8+ {[%emt 0:00:20]} Kf7 {[%emt 0:00:15]} 29. Nxf3 {[%emt 0:00:21]} Qb4 {[%emt 0:01:32]} ({Better is} 29... Rb8 $14) 30. Nd2 {[%emt 0:01:27] Strongly threatening Ra8.} a5 $2 {[%emt 0:00:47][%mdl 8192] Loses the game.} (30... Qd6 $16) 31. Ra8 $18 {[%emt 0:01:06][%cal Oc1c8] White wants to mate with Qc8!} Bg7 {[%emt 0:02:59] [#]} (31... f5 $142 32. h4 Qd6) 32. Qc8 $1 {[%emt 0:00:48][%csl Ga8][%cal Rc8g8]} f5 {[%emt 0:00:08]} 33. Nf3 {[%emt 0:00:05] Intending Ng5+ and mate.} Qxb3 {[%emt 0:00:24]} 34. Qg8+ {[%emt 0:00:04] Weighted Error Value: White=0.08 (flawless) /Black=0.58} (34. Ng5+ $142 Kf6 35. Nxh7+ Kf7 36. Qg8#) 1-0

[Event "German Rapid Championship 2022"]
[Site "Goettingen"]
[Date "2022.09.24"]
[Round "5.9"]
[White "Tschernatsch, Johannes"]
[Black "Hampel, Felix"]
[Result "0-1"]
[ECO "B40"]
[WhiteElo "2294"]
[BlackElo "2326"]
[Annotator "TA"]
[PlyCount "136"]
[EventDate "2022.09.24"]
[EventType "swiss"]
[EventCountry "GER"]
[SourceTitle "playchess.com"]
[Source "ChessBase"]
[SourceQuality "1"]
[TimeControl "900+10"]

{[%evp 9,136,5,23,14,2,15,16,0,41,20,142,139,169,168,156,145,150,168,186,135,131,138,150,130,117,3,10,5,6,0,0,-16,-10,-7,0,-7,-4,-9,-11,-39,0,-28,-30,-31,-23,-26,0,-7,-7,-14,0,-30,0,-8,0,-6,0,0,0,0,-1,-30,-15,-18,-15,-114,-114,-114,-100,-141,0,0,0,0,0,0,0,0,0,0,0,-75,-75,-595,-549,-564,-106,-106,-106,-106,-106,-106,-106,-168,-8,-18,-18,-33,-43,-47,-55,-760,-168,-168,-168,-168,-168,-29966,-29969,-29973,-592,-591,0,-29973,-29974,-29974,-29975,-29975,-29976,-29979,-29980,-29980,-29981,-29983,-29984,-29984,-29985,-29985,-29986]} 1. e4 {[%emt 0:00:02]} c5 {[%emt 0:00:01]} 2. Nf3 {[%emt 0:00:01]} e6 {[%emt 0:00:00]} 3. g3 {[%emt 0:00:03]} Nc6 {[%emt 0:00:03]} 4. Bg2 {[%emt 0:00:02]} Nf6 {[%emt 0:00:02]} 5. Qe2 {[%emt 0:00:01]} d5 {[%emt 0:00:02]} 6. exd5 {[%emt 0:00:05] B40: Sicilian: 2...e6, Unusual lines.} Nxd5 {[%emt 0:00:02]} 7. O-O {[%emt 0:00:08]} Be7 {[%emt 0:00:21]} 8. Rd1 {[%emt 0:00:10] The position is equal.} Bf6 {[%emt 0:01:16] Against d4} (8... e5 $5 {[%cal Rc8g4]}) 9. Nc3 {[%emt 0:00:02]} Nxc3 {[%emt 0:00:51]} (9... O-O $11) 10. dxc3 $16 {[%emt 0:00:11]} Qe7 {[%emt 0:00:37]} 11. Nd2 {[%emt 0:00:56]} Qc7 {[%emt 0:02:04]} 12. Ne4 {[%emt 0:02:26]} Be7 {[%emt 0:00:02]} 13. Be3 {[%emt 0:00:14]} b6 {[%emt 0:02:41] [#]} 14. b4 $146 {[%emt 0:01:43]} (14. Bg5 $18) ({Predecessor:} 14. Qg4 Kf8 15. Ng5 Bxg5 16. Bxg5 Bb7 17. Bf4 Qc8 18. Bd6+ Kg8 19. Rd2 h6 20. Rad1 {1-0 (85) Diamant,A (2472)-Rosen,E (2414) Saint Louis 2015}) 14... cxb4 {[%emt 0:01:04]} 15. cxb4 {[%emt 0:00:04] And now Bf4 would win.} Bb7 {[%emt 0:00:30]} 16. Bf4 {[%emt 0:00:24]} e5 {[%emt 0:00:11] [#]} 17. b5 {[%emt 0:00:21]} (17. Nc3 $1 $16 {[%cal Rc3d5]} exf4 18. Nb5) 17... Na5 {[%emt 0:01:03]} 18. Bd2 {[%emt 0:00:57] Black must now prevent Bxa5.} Nc4 {[%emt 0:00:37]} 19. Be1 {[%emt 0:03:09]} O-O {[%emt 0:00:27]} 20. Nc3 {[%emt 0:00:24] Bxb7 is the strong threat.} Bxg2 {[%emt 0:00:29]} 21. Kxg2 {[%emt 0:00:03]} Rac8 {[%emt 0:00:20]} 22. Nd5 {[%emt 0:00:15]} Qb7 {[%emt 0:00:21]} 23. Qf3 {[%emt 0:03:30][%cal Od5f6] Threatens to win with Nf6+!} Kh8 {[%emt 0:00:12]} 24. a4 {[%emt 0:01:03]} Bc5 {[%emt 0:01:06]} 25. Nc3 {[%emt 0:01:10]} (25. Nb4 $5 {[%cal Rf3b7]} Qxf3+ 26. Kxf3 $15) 25... Qxf3+ {[%emt 0:00:08]} 26. Kxf3 {[%emt 0:00:02]} Bd4 {[%emt 0:00:05] Strongly threatening ...Nb2.} 27. Ra2 {[%emt 0:00:30] Against Nb2} Rfe8 {[%emt 0:02:04]} 28. Kg2 {[%emt 0:00:37]} Bxc3 {[%emt 0:02:03]} 29. Bxc3 {[%emt 0:00:03]} Re7 {[%emt 0:00:02] Against Rd7} 30. Bb4 {[%emt 0:00:31]} Rec7 {[%emt 0:00:07]} 31. c3 {[%emt 0:00:04]} Kg8 {[%emt 0:00:12]} 32. Rd5 {[%emt 0:00:19]} f6 {[%emt 0:00:27]} 33. a5 {[%emt 0:00:12]} Kf7 {[%emt 0:00:13]} 34. axb6 {[%emt 0:00:05]} axb6 {[%emt 0:00:12]} 35. Ra6 {[%emt 0:00:18]} Ke6 {[%emt 0:00:04]} 36. Rd1 {[%emt 0:00:09]} g6 {[%emt 0:00:28]} 37. Rxb6+ {[%emt 0:00:27]} Nxb6 $17 {[%emt 0:00:05]} 38. Rd6+ {[%emt 0:00:01]} Kf5 {[%emt 0:00:12]} 39. Rxb6 {[%emt 0:00:04]} Rxc3 {[%emt 0:00:34]} ({Better is} 39... e4 $17 40. f3 exf3+ 41. Kxf3 Rd7) 40. Bxc3 $11 {[%emt 0:00:03]} Rxc3 $17 {[%emt 0:00:01][%mdl 4096] Endgame KR-KR} 41. Rb7 {[%emt 0:00:51]} h5 {[%emt 0:00:02]} 42. h4 {[%emt 0:00:06]} Rb3 {[%emt 0:00:01]} 43. b6 {[%emt 0:00:09]} Rb2 {[%emt 0:00:04]} 44. Kf3 {[%emt 0:00:17]} Rb3+ {[%emt 0:00:37]} 45. Ke2 {[%emt 0:00:10]} (45. Kg2 $1 $11 {keeps the balance.}) 45... Ke4 {[%emt 0:00:22] aiming for ...Rb2+.} 46. Rg7 $2 {[%emt 0:00:03][%mdl 8192] [#]} (46. Rc7 $17 {keeps some hope.}) 46... Rb2+ $1 $19 {[%emt 0:00:01]} 47. Ke1 {[%emt 0:00:09]} Kf3 $2 {[%emt 0:00:17]} (47... Rxb6 $19 {has better winning chances.} 48. Rxg6 Kf3) 48. b7 $17 {[%emt 0:00:15]} Rb1+ {[%emt 0:00:05]} 49. Kd2 {[%emt 0:00:03]} Kxf2 {[%emt 0:00:01]} 50. Rxg6 {[%emt 0:00:03] [#]} Rb2+ $1 {[%emt 0:00:28]} 51. Kd3 {[%emt 0:00:07]} (51. Kd1 $17 {is a better defense.}) 51... f5 $2 {[%emt 0:00:08]} ({Black should play} 51... Rxb7 $19 52. Rxf6+ Kxg3) 52. Rf6 {[%emt 0:00:11]} ({Don't play} 52. Rg7 e4+ 53. Kc3 Rb1 $17) 52... e4+ {[%emt 0:00:05]} 53. Kc3 {[%emt 0:00:05]} Rxb7 {[%emt 0:00:03]} 54. Rxf5+ {[%emt 0:00:02]} Kxg3 {[%emt 0:00:24]} 55. Re5 $2 {[%emt 0:00:20][%mdl 8192]} (55. Rxh5 $15 Kf3 56. Rf5+ Ke3 57. h5) 55... Kxh4 $2 {[%emt 0:00:07]} (55... Kf3 56. Kd2 Rd7+ 57. Ke1 Ra7 58. Rf5+ Kg4) 56. Rxe4+ $19 {[%emt 0:00:02]} Kg3 {[%emt 0:00:00] ( -> ...h4)} 57. Re3+ {[%emt 0:00:14]} Kf2 {[%emt 0:00:18]} 58. Re4 {[%emt 0:00:21]} (58. Re8 $19) 58... Rh7 {[%emt 0:00:10]} 59. Kd2 {[%emt 0:00:12]} Rd7+ {[%emt 0:00:08]} (59... h4 $142 60. Re2+ Kg3 61. Re3+ Kf4 62. Rh3 Kg4 63. Rh1 Kf3 64. Rh2 Kg3 65. Rh1 Kg2 66. Rc1 h3 67. Ke3 h2 68. Kf4 h1=Q 69. Rc2+ Kf1 70. Rc1+ Kg2 71. Rxh1 Rxh1 72. Ke4 Rd1 73. Ke3 Kg3 74. Ke2 Rd4 75. Ke3 Rf4 76. Kd2 Kf2 77. Kd3 Rh4 78. Kc2 Rh3 79. Kd1 Ke3 80. Kc2 Ke2 81. Kc1 Kd3 82. Kb2 Kd2 83. Ka1 Kc1 84. Ka2 Kc2 85. Ka1 Ra3#) 60. Kc2 {[%emt 0:00:08]} Rh7 {[%emt 0:00:01]} (60... Kg3 $19 61. Re3+ Kf4) 61. Kd2 $1 {[%emt 0:00:01]} h4 {[%emt 0:00:01][%cal Bh5h4,Bh4h3,Bh3h2][%mdl 32] Black mates.} 62. Re2+ {[%emt 0:00:03]} Kf3 {[%emt 0:00:07]} 63. Re3+ {[%emt 0:00:03]} Kf4 {[%emt 0:00:07]} 64. Ke2 {[%emt 0:00:10]} h3 {[%emt 0:00:11]} 65. Rf3+ {[%emt 0:00:09]} Kg4 {[%emt 0:00:02]} 66. Ra3 {[%emt 0:00:54]} h2 {[%emt 0:00:02]} 67. Ra4+ {[%emt 0:00:07]} Kg3 {[%emt 0:00:08]} 68. Ra3+ {[%emt 0:00:10]} Kg2 {[%emt 0:00:02] Quite a comeback for Black.  Weighted Error Value: White=0.51/Black=0.60} 0-1